bitfinex-derivatives/quotes_ETHF0:USTF0_20250405
["timestamp","ask_amount","ask_price","bid_price","bid_amount"]
[1743873344032,2.9506,1786.0,1785.9,3.63201793]
[1743873344332,2.9506,1786.0,1785.9,2.84780793]
[1743873345431,2.9506,1786.0,1785.9,3.63201793]
[1743873345631,2.9506,1786.0,1785.9,2.84780793]
[1743873345832,2.9506,1786.0,1785.9,3.63163624]
[1743873346833,3.2078,1786.3,1786.1,0.78411]
[1743873347131,6.1249,1786.3,1786.2,0.80051552]
[1743873347834,6.90894,1786.3,1786.2,0.80051552]
[1743873351235,0.78408,1786.2,1786.1,3.561]
[1743873351435,2.32688,1786.2,1786.1,4.92087713]
[1743873352225,2.32688,1786.2,1786.1,4.36060519]
[1743873353038,2.32688,1786.2,1786.1,4.36062998]
[1743873353241,1.5428,1786.2,1786.1,5.14482271]
[1743873353433,1.5428,1786.2,1786.1,5.70513731]
[1743873354341,2.32688,1786.2,1786.1,5.70513731]
[1743873354744,2.32688,1786.2,1786.1,4.92101731]
[1743873355042,2.32688,1786.2,1786.1,4.92104625]
[1743873357144,5.53468,1786.2,1786.1,4.92104625]
[1743873358643,5.53468,1786.2,1786.1,4.36104648]
[1743873360348,5.53468,1786.2,1786.1,5.14516648]
[1743873360649,5.53468,1786.2,1786.1,5.14529489]
[1743873361140,5.53468,1786.2,1786.1,4.36117489]
[1743873361645,5.53468,1786.2,1786.1,4.36126348]
[1743873362647,5.53468,1786.2,1786.1,4.36140352]
[1743873363248,5.53468,1786.2,1786.1,5.76650352]
[1743873365050,5.53468,1786.2,1786.1,4.9661]
[1743873365245,5.53468,1786.2,1786.1,5.7666686]
[1743873365751,5.53468,1786.2,1786.1,6.32769159]
[1743873366855,4.7506,1786.2,1786.1,7.11181159]
[1743873367243,5.53468,1786.2,1786.1,7.11181159]
[1743873367444,5.53468,1786.2,1786.1,6.32769159]
[1743873368452,5.53468,1786.2,1786.1,7.11181159]
[1743873368752,5.53468,1786.2,1786.1,6.32769159]
[1743873368945,5.53468,1786.2,1786.1,6.32862641]
[1743873370454,5.53468,1786.2,1786.1,7.11274641]
[1743873370754,5.53468,1786.2,1786.1,6.32862641]
[1743873371551,2.32688,1786.2,1786.1,6.32862641]
[1743873371748,2.32688,1786.2,1786.1,7.11274641]
[1743873372451,2.32688,1786.2,1786.1,5.75022]
[1743873372659,2.32688,1786.2,1786.1,7.11386764]
[1743873373156,1.5428,1786.2,1786.1,7.11386764]
[1743873373353,2.32688,1786.2,1786.1,7.11386764]
[1743873373758,2.32688,1786.2,1786.1,6.32974764]
[1743873374358,2.32688,1786.2,1786.1,6.33022802]
[1743873374557,2.32688,1786.2,1786.1,1.36412802]
[1743873375060,2.32688,1786.2,1786.1,2.86612802]
[1743873375667,4.7286,1786.3,1786.2,0.78408]
[1743873375958,5.51264,1786.3,1786.2,2.14820802]
[1743873376160,5.51264,1786.3,1786.2,3.53942547]
[1743873377362,5.51264,1786.3,1786.2,2.75534547]
[1743873377963,5.51264,1786.3,1786.2,2.75528334]
[1743873378665,5.51264,1786.3,1786.2,3.53936334]
[1743873379056,4.7286,1786.3,1786.2,3.53936334]
[1743873379354,5.51264,1786.3,1786.2,3.53936334]
[1743873379562,2.30484,1786.3,1786.2,3.53936334]
[1743873379765,2.30484,1786.3,1786.2,3.53920292]
[1743873379969,5.51264,1786.3,1786.2,3.53920292]
[1743873380264,2.30484,1786.3,1786.2,3.53920292]
[1743873380464,5.51264,1786.3,1786.2,3.53920292]
[1743873380665,4.7286,1786.3,1786.2,3.53920292]
[1743873381066,6.2564,1786.3,1786.2,3.53920292]
[1743873381660,7.04044,1786.3,1786.2,3.53920292]
[1743873381860,7.04044,1786.3,1786.2,2.75512292]
[1743873382067,7.04044,1786.3,1786.2,3.53920292]
[1743873382267,6.2564,1786.3,1786.2,3.53920292]
[1743873383166,7.04044,1786.3,1786.2,2.75512292]
[1743873383461,7.04044,1786.3,1786.2,2.19310378]
[1743873383668,7.04044,1786.3,1786.2,2.75506607]
[1743873383867,7.04044,1786.3,1786.2,1.36406607]
[1743873385464,7.04044,1786.3,1786.2,1.36400031]
[1743873385662,7.04044,1786.3,1786.2,2.14808031]
[1743873386572,6.2564,1786.3,1786.2,2.14808031]
[1743873387269,6.2564,1786.3,1786.2,2.14807601]
[1743873387470,6.2564,1786.3,1786.2,3.66077601]
[1743873388669,7.04044,1786.3,1786.2,1.36399601]
[1743873390877,7.04044,1786.3,1786.2,1.36401436]
[1743873392677,7.04044,1786.3,1786.2,2.148142]
[1743873392870,7.04044,1786.3,1786.2,1.364062]
[1743873393071,7.04044,1786.3,1786.2,2.148142]
[1743873393471,7.04044,1786.3,1786.2,1.364062]
[1743873394273,7.04044,1786.3,1786.2,2.148142]
[1743873394477,7.04044,1786.3,1786.2,1.36408115]
[1743873394978,7.04044,1786.3,1786.2,1.36408116]
[1743873395175,3.83264,1786.3,1786.2,1.36408116]
[1743873395370,7.04044,1786.3,1786.2,1.36408116]
[1743873395571,7.04044,1786.3,1786.2,2.14816116]
[1743873395874,6.2564,1786.3,1786.2,2.14816116]
[1743873396071,6.2564,1786.3,1786.2,3.62716116]
[1743873396280,6.2564,1786.3,1786.2,3.62715398]
[1743873398088,6.2564,1786.3,1786.2,3.62713651]
[1743873398486,3.9781,1786.3,1786.2,3.62713651]
[1743873398691,3.2078,1786.3,1786.2,3.62713651]
[1743873399078,0.78398,1786.5,1786.3,0.78403]
[1743873399079,5.49878,1786.5,1786.3,0.78403]
[1743873399284,5.49878,1786.5,1786.4,1.36405651]
[1743873399989,5.49878,1786.5,1786.4,2.82675761]
[1743873400885,5.49878,1786.5,1786.4,3.61074761]
[1743873401690,5.49878,1786.5,1786.4,3.61026615]
[1743873401891,4.7148,1786.5,1786.4,3.61026615]
[1743873402890,5.49875,1786.5,1786.4,3.61026615]
[1743873404088,5.49875,1786.5,1786.4,2.82627615]
[1743873404593,5.49875,1786.5,1786.4,2.82618423]
[1743873405286,5.49875,1786.5,1786.4,1.4628]
[1743873405592,5.49875,1786.5,1786.4,1.36330627]
[1743873407091,5.49875,1786.5,1786.4,0.56168045]
[1743873407394,5.49875,1786.5,1786.4,1.36320317]
[1743873410795,0.78399,1786.4,1786.3,0.78401]
[1743873410991,2.20039,1786.4,1786.3,2.14695971]
[1743873411591,2.20039,1786.4,1786.3,1.36294971]
[1743873411793,2.91479,1786.4,1786.3,1.36294971]
[1743873413491,0.78404,1786.3,1786.2,0.78408]
[1743873413685,2.95834,1786.3,1786.2,2.14704283]
[1743873414587,2.95834,1786.3,1786.2,1.36296283]
[1743873415901,2.95834,1786.3,1786.2,2.14704283]
[1743873416399,2.95834,1786.3,1786.2,2.14711549]
[1743873416992,6.16614,1786.3,1786.2,2.14711549]
[1743873417595,2.95834,1786.3,1786.2,2.14711549]
[1743873417797,6.16614,1786.3,1786.2,1.36303549]
[1743873419000,6.16614,1786.3,1786.2,2.14711549]
[1743873421000,6.16614,1786.3,1786.2,2.14722294]
[1743873421498,6.16614,1786.3,1786.2,2.14737482]
[1743873422002,6.16614,1786.3,1786.2,3.65967482]
[1743873422705,5.3821,1786.3,1786.2,3.65967482]
[1743873422901,5.3821,1786.3,1786.2,3.65980214]
[1743873423205,6.16614,1786.3,1786.2,3.65980214]
[1743873423699,6.16614,1786.3,1786.2,2.87572214]
[1743873424505,6.16614,1786.3,1786.2,3.65980214]
[1743873424805,6.16614,1786.3,1786.2,3.65995132]
[1743873425211,2.95834,1786.3,1786.2,3.65995132]
[1743873425503,6.16614,1786.3,1786.2,3.65995132]
[1743873426106,6.16614,1786.3,1786.2,2.87587132]
[1743873426303,6.16614,1786.3,1786.2,2.14765132]
[1743873426606,6.16614,1786.3,1786.2,1.36374033]
[1743873427307,6.16614,1786.3,1786.2,2.14782033]
[1743873428307,6.16614,1786.3,1786.2,1.36417151]
[1743873429710,6.16614,1786.3,1786.2,2.14825151]
[1743873430102,6.16614,1786.3,1786.2,1.34611867]
[1743873430301,6.16614,1786.3,1786.2,2.14824795]
[1743873431310,6.16614,1786.3,1786.2,1.36416795]
[1743873431608,6.16614,1786.3,1786.2,2.14824795]
[1743873432009,6.16614,1786.3,1786.2,2.14824012]
[1743873432309,6.16614,1786.3,1786.2,1.36416012]
[1743873434306,6.16614,1786.3,1786.2,0.80212611]
[1743873439318,0.78412,1786.1,1786.0,0.0084109]
[1743873439613,3.99192,1786.1,1786.0,1.37096305]
[1743873440512,5.50352,1786.1,1786.0,1.37096305]
[1743873440712,5.50352,1786.1,1786.0,1.37088486]
[1743873440912,5.50352,1786.1,1786.0,2.15505486]
[1743873441117,0.7412,1786.2,1786.1,0.78412]
[1743873441315,6.25845,1786.3,1786.1,3.57399396]
[1743873441615,6.25845,1786.3,1786.2,1.36247396]
[1743873441815,6.25845,1786.3,1786.2,2.78987396]
[1743873442827,6.25845,1786.3,1786.2,2.78972894]
[1743873444615,6.25845,1786.3,1786.2,2.78976734]
[1743873446422,6.25845,1786.3,1786.2,2.78982598]
[1743873446622,4.74685,1786.3,1786.2,2.78982598]
[1743873446921,4.74685,1786.3,1786.2,3.51632598]
[1743873447723,4.74685,1786.3,1786.2,4.30040598]
[1743873448119,4.74685,1786.3,1786.2,3.51632598]
[1743873449025,4.74685,1786.3,1786.2,2.78982598]
[1743873449223,4.74685,1786.3,1786.2,2.78985394]
[1743873449723,4.74685,1786.3,1786.2,3.57393394]
[1743873449924,5.51235,1786.3,1786.2,2.78985394]
[1743873450125,5.51235,1786.3,1786.2,3.57408084]
[1743873451024,3.2078,1786.3,1786.2,3.57408084]
[1743873451922,3.2078,1786.3,1786.2,3.57412914]
[1743873452724,1.4418,1786.4,1786.3,0.78404]
[1743873453024,4.7005,1786.5,1786.3,3.63768914]
[1743873453224,5.48445,1786.5,1786.4,1.36264914]
[1743873453426,5.48445,1786.5,1786.4,2.85364914]
[1743873453725,5.48445,1786.5,1786.4,2.85360549]
[1743873455426,5.48445,1786.5,1786.4,3.63759549]
[1743873455723,3.935,1786.5,1786.4,3.63759549]
[1743873455925,4.71895,1786.5,1786.4,3.63759549]
[1743873456227,6.21225,1786.5,1786.4,2.85360549]
[1743873460929,6.21225,1786.5,1786.4,2.85324007]
[1743873461623,6.21225,1786.5,1786.4,3.63723007]
[1743873462123,6.21225,1786.5,1786.4,2.85324007]
[1743873462831,6.21225,1786.5,1786.4,2.85320054]
[1743873463028,6.21225,1786.5,1786.4,3.63719054]
[1743873464335,6.21225,1786.5,1786.4,2.85320866]
[1743873466330,6.21225,1786.5,1786.4,3.63719866]
[1743873466529,6.21225,1786.5,1786.4,2.85327718]
[1743873467531,6.21225,1786.5,1786.4,3.63726718]
[1743873468328,6.21225,1786.5,1786.4,3.63742678]
[1743873468637,6.21225,1786.5,1786.4,2.85343678]
[1743873470031,6.21225,1786.5,1786.4,3.63742678]
[1743873471834,6.21225,1786.5,1786.4,3.63768031]
[1743873472637,5.4283,1786.5,1786.4,3.63768031]
[1743873473031,6.1423,1786.5,1786.4,3.63768031]
[1743873473631,6.1423,1786.5,1786.4,3.6380517]
[1743873473836,6.1423,1786.5,1786.4,3.63805175]
[1743873475435,6.92625,1786.5,1786.4,3.63805175]
[1743873475630,6.92625,1786.5,1786.4,3.63806492]
[1743873476336,6.1423,1786.5,1786.4,3.63806492]
[1743873476836,6.92625,1786.5,1786.4,3.63806492]
[1743873477331,6.92625,1786.5,1786.4,2.83656848]
[1743873477538,6.92625,1786.5,1786.4,3.63813506]
[1743873478636,6.1423,1786.5,1786.4,3.63813506]
[1743873479233,6.1423,1786.5,1786.4,3.63815444]
[1743873480839,6.1423,1786.5,1786.4,3.63851785]
[1743873482241,6.92625,1786.5,1786.4,3.63870605]
[1743873483843,6.1423,1786.5,1786.4,3.63870605]
[1743873485042,2.9345,1786.5,1786.4,3.63870605]
[1743873485242,6.1423,1786.5,1786.4,3.63879774]
[1743873485841,6.1423,1786.5,1786.4,3.63892157]
[1743873486444,6.92625,1786.5,1786.4,3.63892157]
[1743873487642,6.92625,1786.5,1786.4,3.63892541]
[1743873487840,3.71845,1786.5,1786.4,3.63892541]
[1743873488041,6.92625,1786.5,1786.4,3.63892541]
[1743873489446,6.92625,1786.5,1786.4,3.63894217]
[1743873490449,6.1423,1786.5,1786.4,3.63894217]
[1743873491244,6.1423,1786.5,1786.4,2.27499]
[1743873491545,6.1423,1786.5,1786.4,3.63897618]
[1743873491951,6.92625,1786.5,1786.4,3.63897618]
[1743873492652,3.71845,1786.5,1786.4,3.63897618]
[1743873492848,6.1423,1786.5,1786.4,3.63897618]
[1743873494048,6.92625,1786.5,1786.4,3.63897618]
[1743873495154,6.92625,1786.5,1786.4,3.63907978]
[1743873495851,6.92625,1786.5,1786.4,2.85508978]
[1743873496051,6.92625,1786.5,1786.4,1.36408978]
[1743873496747,6.1423,1786.5,1786.2,6.61976]
[1743873496953,0.78399,1786.4,1786.3,1.36423183]
[1743873497154,0.78399,1786.4,1786.3,2.14827183]
[1743873497457,0.78399,1786.4,1786.3,1.36423183]
[1743873498662,0.78399,1786.4,1786.3,1.36422658]
[1743873498867,0.78399,1786.4,1786.3,0.56205634]
[1743873499058,0.78399,1786.4,1786.3,1.36421439]
[1743873499259,0.78399,1786.4,1786.3,2.14825439]
[1743873499657,4.649,1786.5,1786.3,2.14825439]
[1743873499865,5.43298,1786.5,1786.4,1.36421439]
[1743873500366,5.43298,1786.5,1786.4,1.36418697]
[1743873505971,5.43298,1786.5,1786.4,1.36401881]
[1743873507674,5.43298,1786.5,1786.4,1.36377663]
[1743873508071,2.22518,1786.5,1786.4,1.36377663]
[1743873508373,5.43298,1786.5,1786.4,1.36377663]
[1743873509473,4.649,1786.5,1786.4,1.3637245]
[1743873509773,5.43295,1786.5,1786.4,1.3637245]
[1743873510475,2.22515,1786.5,1786.4,1.3637245]
[1743873510770,5.43295,1786.5,1786.4,1.3637245]
[1743873513177,0.78402,1786.4,1786.2,5.81655]
[1743873513370,0.78402,1786.4,1786.3,1.3637347]
[1743873514473,2.18512,1786.4,1786.3,1.3637347]
[1743873514865,2.18512,1786.4,1786.3,1.3637656]
[1743873520375,2.18512,1786.4,1786.3,1.36378751]
[1743873520680,5.39292,1786.4,1786.3,1.36378751]
[1743873523382,2.18512,1786.4,1786.3,1.36378751]
[1743873523576,5.39292,1786.4,1786.3,1.36378751]
[1743873523978,5.39292,1786.4,1786.3,1.36383681]
[1743873525780,5.39292,1786.4,1786.1,2.21552]
[1743873526085,0.78408,1786.2,1786.1,2.21552]
[1743873526377,0.78408,1786.2,1786.1,3.57963483]
[1743873527285,0.78408,1786.2,1786.1,2.79551483]
[1743873527581,0.78408,1786.2,1786.1,3.01761994]
[1743873527787,0.78408,1786.2,1786.1,3.57968748]
[1743873529393,0.78408,1786.2,1786.1,2.79556748]
[1743873529996,0.78408,1786.2,1786.1,3.57968748]
[1743873530582,0.78408,1786.2,1786.1,2.79556748]
[1743873530981,0.78408,1786.2,1786.1,3.57968748]
[1743873531288,0.78408,1786.2,1786.1,3.57963089]
[1743873531486,0.78408,1786.2,1786.1,3.01761763]
[1743873531689,0.78408,1786.2,1786.1,3.57962512]
[1743873531890,0.78408,1786.2,1786.1,1.36410512]
[1743873532091,5.49568,1786.2,1786.1,1.36410512]
[1743873532483,5.49568,1786.2,1786.1,0.80209763]
[1743873533702,0.78412,1786.1,1786.0,0.0084109]
[1743873533991,6.23822,1786.1,1786.0,0.80962805]
[1743873535092,6.23822,1786.1,1786.0,0.80932813]
[1743873535894,3.03042,1786.1,1786.0,0.80932813]
[1743873536095,6.23822,1786.1,1786.0,0.80932813]
[1743873536997,6.23822,1786.1,1786.0,0.80889418]
[1743873538699,6.23822,1786.1,1786.0,0.80858035]
[1743873539398,6.23822,1786.1,1786.0,2.23458035]
[1743873540499,6.23822,1786.1,1786.0,2.2344396]
[1743873541391,3.99192,1786.1,1786.0,2.2344396]
[1743873541587,3.99192,1786.1,1786.0,2.9812396]
[1743873541793,0.78412,1786.1,1786.0,3.54177555]
[1743873542899,3.99192,1786.1,1786.0,3.54177555]
[1743873543096,3.99192,1786.1,1786.0,2.9812396]
[1743873543902,3.99192,1786.1,1786.0,3.54179358]
[1743873545300,3.99192,1786.1,1786.0,3.54184474]
[1743873546403,3.2078,1786.5,1786.0,3.54184474]
[1743873546603,0.78407,1786.3,1786.1,3.64414384]
[1743873546902,0.78407,1786.3,1786.2,3.59883384]
[1743873547098,0.78407,1786.3,1786.2,4.36469582]
[1743873548905,0.78407,1786.3,1786.2,4.36479314]
[1743873550711,0.78407,1786.3,1786.2,4.36479276]
[1743873552800,0.78407,1786.3,1786.2,5.14887276]
[1743873553708,3.2078,1786.4,1786.3,0.78404]
[1743873553912,3.99179,1786.4,1786.3,3.63333276]
[1743873554509,3.99179,1786.4,1786.3,2.84929276]
[1743873554710,3.99179,1786.4,1786.3,3.63333276]
[1743873556218,3.99179,1786.4,1786.3,3.63317538]
[1743873557321,3.2078,1786.4,1786.3,3.63317538]
[1743873559822,3.2078,1786.4,1786.3,3.63253628]
[1743873560219,3.99179,1786.4,1786.3,2.84849628]
[1743873560419,3.2078,1786.4,1786.3,3.63253628]
[1743873560615,3.99179,1786.4,1786.3,2.84849628]
[1743873560815,3.2078,1786.4,1786.3,2.84849628]
[1743873561020,3.99179,1786.4,1786.3,3.63253628]
[1743873561619,3.99179,1786.4,1786.3,3.63226952]
[1743873562823,3.2078,1786.4,1786.3,3.63226952]
[1743873563511,3.2078,1786.4,1786.3,3.63220998]
[1743873564323,3.99179,1786.4,1786.3,3.63220998]
[1743873564824,3.99179,1786.4,1786.3,3.63229609]
[1743873565521,3.99179,1786.4,1786.3,2.84825609]
[1743873565826,5.44599,1786.4,1786.3,3.63229609]
[1743873567124,5.44599,1786.4,1786.3,3.63264135]
[1743873567725,2.23819,1786.4,1786.3,3.63264135]
[1743873568324,3.73759,1786.4,1786.3,3.63264135]
[1743873570726,3.73759,1786.4,1786.3,3.63364425]
[1743873572625,3.73759,1786.4,1786.3,3.63413271]
[1743873573727,2.9536,1786.4,1786.3,3.63413271]
[1743873573928,3.73759,1786.4,1786.3,3.63413271]
[1743873574427,3.73759,1786.4,1786.3,3.63487233]
[1743873576129,2.9536,1786.4,1786.3,3.63487233]
[1743873578027,2.9536,1786.4,1786.3,3.6363082]
[1743873578931,3.73759,1786.4,1786.3,3.6363082]
[1743873579731,2.9536,1786.4,1786.3,3.6363082]
[1743873579927,2.9536,1786.4,1786.3,3.63639847]
[1743873580626,2.9536,1786.4,1786.3,3.07447959]
[1743873580830,2.9536,1786.4,1786.3,3.63645735]
[1743873581032,2.9536,1786.4,1786.3,3.63645736]
[1743873581232,3.73759,1786.4,1786.3,3.63645736]
[1743873581729,2.9536,1786.4,1786.3,3.63645736]
[1743873583533,2.9536,1786.4,1786.3,3.63708361]
[1743873584928,3.73759,1786.4,1786.3,2.85304361]
[1743873585132,3.73759,1786.4,1786.3,1.36444361]
[1743873585334,3.73759,1786.4,1786.3,1.36448157]
[1743873585533,3.73759,1786.4,1786.3,0.56218574]
[1743873585839,3.73759,1786.4,1786.3,2.14857364]
[1743873586335,3.73759,1786.4,1786.3,2.1485993]
[1743873588233,2.9536,1786.4,1786.3,2.1485993]
[1743873588938,2.9536,1786.4,1786.3,2.14863704]
[1743873590136,3.73759,1786.4,1786.3,2.14863704]
[1743873590338,2.9536,1786.4,1786.3,2.14863704]
[1743873592637,2.9536,1786.4,1786.3,2.14869714]
[1743873593741,2.9536,1786.4,1786.3,2.14872994]
[1743873594040,2.9536,1786.4,1786.3,2.14874495]
[1743873594439,2.9536,1786.4,1786.3,2.14873944]
[1743873596241,2.9536,1786.4,1786.3,2.14872481]
[1743873596432,2.9536,1786.4,1786.3,3.65012481]
[1743873598141,2.9536,1786.4,1786.3,3.65011552]
[1743873599543,2.9536,1786.4,1786.3,3.65010198]
[1743873599940,2.9536,1786.4,1786.3,3.65006676]
[1743873602047,3.2078,1786.7,1786.3,2.86602676]
[1743873602238,1.5341,1786.8,1786.7,0.78386]
[1743873602436,3.08962,1786.8,1786.7,1.36462676]
[1743873603047,3.08962,1786.8,1786.7,2.14848676]
[1743873604946,2.3058,1786.8,1786.7,2.14618331]
[1743873607349,3.82982,1786.8,1786.7,2.14618331]
[1743873607643,3.82982,1786.8,1786.7,1.36232331]
[1743873608343,3.82982,1786.8,1786.7,1.36199019]
[1743873611048,6.32982,1786.8,1786.7,1.36199019]
[1743873611251,3.82982,1786.8,1786.7,1.36199019]
[1743873611448,3.82982,1786.8,1786.7,0.80105422]
[1743873612050,0.78392,1786.6,1786.4,4.33697]
[1743873612349,1.4547,1786.5,1786.4,4.33697]
[1743873612549,2.988,1786.5,1786.4,5.69839334]
[1743873613847,2.988,1786.5,1786.4,5.69843589]
[1743873614343,2.988,1786.5,1786.4,4.91446589]
[1743873614552,2.988,1786.5,1786.4,1.36146589]
[1743873615047,3.77195,1786.5,1786.4,1.36146589]
[1743873615752,3.77195,1786.5,1786.4,1.36154121]
[1743873617448,3.77195,1786.5,1786.4,1.3615773]
[1743873622758,0.78399,1786.4,1786.3,2.91313]
[1743873622957,2.24719,1786.4,1786.3,4.27499461]
[1743873624552,2.24719,1786.4,1786.3,3.71390882]
[1743873624758,2.24719,1786.4,1786.3,4.27502535]
[1743873626557,2.24719,1786.4,1786.3,4.27516187]
[1743873627467,2.24719,1786.4,1786.3,1.36203187]
[1743873629764,0.78412,1786.1,1786.0,5.9264109]
[1743873630061,3.99192,1786.1,1786.0,5.9264109]
[1743873630964,5.39372,1786.1,1786.0,6.7105809]
[1743873631855,0.78412,1786.1,1786.0,0.0084109]
[1743873632058,1.4967,1786.2,1786.0,1.4985109]
[1743873632059,1.55472,1786.2,1786.0,1.4985109]
[1743873632362,1.55472,1786.2,1786.1,1.4744]
[1743873633066,0.78412,1786.2,1786.1,1.4744]
[1743873633861,2.93792,1786.2,1786.1,1.4744]
[1743873635065,2.1538,1786.2,1786.1,2.25852]
[1743873635460,2.93788,1786.2,1786.1,2.25852]
[1743873636559,2.93788,1786.2,1786.1,1.4744]
[1743873639072,6.14568,1786.2,1786.1,1.4744]
[1743873639658,6.14568,1786.2,1786.1,2.25852]
[1743873640170,2.93788,1786.2,1786.1,2.25852]
[1743873641869,2.93788,1786.2,1786.1,3.60449885]
[1743873642770,2.93788,1786.2,1786.1,3.60453808]
[1743873643573,2.93788,1786.2,1786.1,2.82041808]
[1743873643971,2.93788,1786.2,1786.1,3.60453808]
[1743873646473,2.93788,1786.2,1786.1,3.60482338]
[1743873647479,2.1538,1786.2,1786.1,3.60482338]
[1743873648279,2.1538,1786.2,1786.1,3.60496019]
[1743873650180,2.1538,1786.2,1786.1,3.60517369]
[1743873651883,2.1538,1786.2,1786.1,3.60545594]
[1743873653276,2.1538,1786.2,1786.1,3.60552541]
[1743873653786,2.1538,1786.2,1786.1,3.60583739]
[1743873653986,2.1538,1786.2,1786.1,3.60583734]
[1743873655481,2.1538,1786.2,1786.1,2.25852]
[1743873655787,2.1538,1786.2,1786.1,3.60629745]
[1743873656891,2.93788,1786.2,1786.1,3.60629745]
[1743873657384,2.93788,1786.2,1786.1,2.82232978]
[1743873657584,3.66598,1786.2,1786.1,2.82232978]
[1743873657986,3.66598,1786.2,1786.1,1.34792978]
[1743873659282,3.66598,1786.2,1786.1,1.34818649]
[1743873660781,0.78412,1786.1,1786.0,0.0084109]
[1743873660981,5.40652,1786.1,1786.0,1.35731254]
[1743873661389,5.40652,1786.1,1786.0,2.14148254]
[1743873661583,5.40652,1786.1,1786.0,1.35731254]
[1743873661788,5.40652,1786.1,1786.0,2.14148254]
[1743873662002,1.478,1786.2,1786.1,0.78412]
[1743873662292,3.2078,1786.3,1786.2,0.78408]
[1743873662293,4.7498,1786.3,1786.2,0.78408]
[1743873662494,4.7498,1786.3,1786.2,2.13298164]
[1743873662683,4.7498,1786.3,1786.2,3.59188164]
[1743873663197,1.542,1786.3,1786.2,3.59188164]
[1743873664597,5.53384,1786.3,1786.2,2.80780164]
[1743873665193,5.53384,1786.3,1786.2,1.34890164]
[1743873665890,5.53384,1786.3,1786.2,1.34885741]
[1743873667599,0.78408,1786.2,1786.0,2.3243509]
[1743873667790,2.93878,1786.2,1786.1,1.34880576]
[1743873669096,2.1547,1786.2,1786.1,1.34880576]
[1743873669392,2.8791,1786.2,1786.1,1.34880576]
[1743873669593,2.8791,1786.2,1786.1,1.34881217]
[1743873669793,2.8791,1786.2,1786.1,3.55453217]
[1743873670398,3.2078,1786.3,1786.2,0.78408]
[1743873670589,6.20044,1786.3,1786.2,3.55449217]
[1743873670986,5.4164,1786.3,1786.2,3.55449217]
[1743873671496,5.4164,1786.3,1786.2,3.55445984]
[1743873672798,6.20044,1786.3,1786.2,3.55445984]
[1743873673195,6.20044,1786.3,1786.2,2.77037984]
[1743873674897,6.20044,1786.3,1786.2,2.7704157]
[1743873675900,5.4164,1786.3,1786.2,3.5544957]
[1743873676694,3.2078,1786.3,1786.2,6.31283598]
[1743873676899,5.4409,1786.6,1786.4,0.78396]
[1743873677195,5.4409,1786.6,1786.5,2.13272244]
[1743873678298,5.4409,1786.6,1786.5,2.89472244]
[1743873678599,0.7462,1786.7,1786.6,0.7839]
[1743873678805,3.99164,1786.8,1786.6,3.62257244]
[1743873679008,3.2078,1786.8,1786.7,2.13263244]
[1743873679194,3.99162,1786.8,1786.7,2.83867244]
[1743873679799,4.71182,1786.8,1786.7,1.34877244]
[1743873680406,4.71182,1786.8,1786.7,1.34680703]
[1743873682200,4.71182,1786.8,1786.7,1.34591273]
[1743873682808,4.71182,1786.8,1786.7,0.79195836]
[1743873683609,3.928,1786.8,1786.7,1.57581836]
[1743873683810,3.928,1786.8,1786.7,2.12950608]
[1743873684009,6.14552,1786.8,1786.7,2.12950608]
[1743873684309,6.14552,1786.8,1786.7,1.57581836]
[1743873684710,6.14552,1786.8,1786.7,0.79195836]
[1743873685811,6.14552,1786.8,1786.7,0.79129706]
[1743873688208,2.93772,1786.8,1786.7,0.79129706]
[1743873688409,6.14552,1786.8,1786.7,0.79129706]
[1743873689413,6.14552,1786.8,1786.7,0.79112519]
[1743873692913,6.14552,1786.8,1786.7,0.79118503]
[1743873693120,0.7839,1786.7,1786.5,4.33592]
[1743873693317,1.4807,1786.7,1786.6,1.34460662]
[1743873693518,3.0198,1786.7,1786.6,1.34460662]
[1743873694321,6.2276,1786.7,1786.6,1.34460662]
[1743873695020,6.2276,1786.7,1786.6,1.34465718]
[1743873696919,6.2276,1786.7,1786.6,1.34490417]
[1743873697119,6.2276,1786.7,1786.6,1.34490185]
[1743873698623,0.7839,1786.6,1786.5,0.78394]
[1743873698821,2.8946,1786.6,1786.5,2.12926049]
[1743873702220,2.8946,1786.6,1786.5,2.1300475]
[1743873704024,2.8946,1786.6,1786.5,2.13072055]
[1743873706424,3.9046,1786.7,1786.5,2.13072055]
[1743873706425,4.68848,1786.7,1786.5,1.34678055]
[1743873706625,4.68848,1786.7,1786.6,1.34678055]
[1743873706926,4.68848,1786.7,1786.6,2.13068055]
[1743873707631,1.48068,1786.7,1786.6,2.13288752]
[1743873707831,2.24078,1786.7,1786.6,1.34898752]
[1743873708325,3.73048,1786.7,1786.6,3.55658752]
[1743873708831,3.73048,1786.7,1786.6,2.77268752]
[1743873709130,3.03366,1786.7,1786.6,3.55658752]
[1743873709437,3.03366,1786.7,1786.6,4.31357269]
[1743873709927,0.78386,1786.7,1786.6,4.31357269]
[1743873711630,0.78386,1786.7,1786.6,3.52967269]
[1743873711826,3.2078,1786.8,1786.7,0.78386]
[1743873712032,3.2078,1786.8,1786.7,3.57523269]
[1743873712433,3.99162,1786.8,1786.7,3.57523269]
[1743873712638,3.2078,1786.8,1786.7,3.57523269]
[1743873712933,3.99162,1786.8,1786.7,3.57523269]
[1743873713133,3.99162,1786.8,1786.7,3.5751575]
[1743873714031,3.2078,1786.8,1786.7,3.5751575]
[1743873714228,3.2078,1786.8,1786.7,3.57510685]
[1743873714432,3.99162,1786.8,1786.7,3.57510685]
[1743873714939,3.2078,1786.8,1786.7,3.57510685]
[1743873716229,0.78382,1786.8,1786.7,3.57493792]
[1743873717043,0.78382,1786.8,1786.7,3.57481943]
[1743873717332,6.87851,1786.9,1786.7,3.57473328]
[1743873717530,6.87851,1786.9,1786.8,2.84667328]
[1743873718540,6.17121,1786.9,1786.8,2.84667328]
[1743873718735,3.2078,1786.9,1786.8,3.63035213]
[1743873719338,2.21586,1787.0,1786.8,3.63035213]
[1743873719533,2.21586,1787.0,1786.9,2.84653213]
[1743873719727,2.21586,1787.0,1786.9,4.40140213]
[1743873721741,2.21586,1787.0,1786.9,4.40092948]
[1743873723744,2.21586,1787.0,1786.9,3.61715948]
[1743873724443,5.42366,1787.0,1786.9,3.61715948]